[Event "Titled Tuesday Blitz December 7 2021"]
[White "Gasanov, Eldar"]
[Black "Gontcharov, Vladislav"]
[WhiteFideId "14104466"]
[BlackFideId "4123492"]
[WhiteElo "2454"]
[BlackElo "2503"]
[Result "0-1"]
[Round "06"]
[TimeControl "180+1"]
[Date "2021.12.07"]
[WhiteClock "0:00:09"]
[BlackClock "0:00:05"]

1. d4 {[%clk 0:03:00]}  Nf6 {[%clk 0:02:59]} 2. c4 {[%clk 0:03:01]}  c5 {[%clk 0:02:59]} 3. d5 {[%clk 0:03:01]}  e6 {[%clk 0:02:59]} 4. Nf3 {[%clk 0:03:00]}  exd5 {[%clk 0:03:00]} 5. cxd5 {[%clk 0:03:01]}  d6 {[%clk 0:03:00]} 6. e4 {[%clk 0:03:01]}  g6 {[%clk 0:03:00]} 7. Bd3 {[%clk 0:03:01]}  Bg7 {[%clk 0:03:00]} 8. O-O {[%clk 0:03:02]}  O-O {[%clk 0:03:00]} 9. h3 {[%clk 0:03:02]}  b5 {[%clk 0:02:52]} 10. Re1 {[%clk 0:02:54]}  c4 {[%clk 0:02:48]} 11. Bf1 {[%clk 0:02:45]}  Re8 {[%clk 0:02:47]} 12. Nbd2 {[%clk 0:02:42]}  Bb7 {[%clk 0:02:31]} 13. a4 {[%clk 0:02:40]}  a6 {[%clk 0:02:31]} 14. Qc2 {[%clk 0:02:20]}  Nbd7 {[%clk 0:02:25]} 15. axb5 {[%clk 0:02:14]}  axb5 {[%clk 0:02:24]} 16. Rxa8 {[%clk 0:02:15]}  Qxa8 {[%clk 0:02:19]} 17. b3 {[%clk 0:02:15]}  c3 {[%clk 0:02:08]} 18. Qxc3 {[%clk 0:02:12]}  Nxd5 {[%clk 0:02:06]} 19. Qd3 {[%clk 0:02:00]}  Nc5 {[%clk 0:02:01]} 20. Qxb5 {[%clk 0:02:00]}  Nc3 {[%clk 0:02:00]} 21. Qb6 {[%clk 0:01:55]}  N3xe4 {[%clk 0:01:45]} 22. Nxe4 {[%clk 0:01:52]}  Nxe4 {[%clk 0:01:45]} 23. Bb5 {[%clk 0:01:38]}  Rb8 {[%clk 0:01:25]} 24. Bc4 {[%clk 0:01:19]}  d5 {[%clk 0:01:19]} 25. Bf4 {[%clk 0:01:08]}  Rc8 {[%clk 0:01:04]} 26. Bf1 {[%clk 0:01:03]}  Bc3 {[%clk 0:00:55]} 27. Rc1 {[%clk 0:00:56]}  Bb2 {[%clk 0:00:52]} 28. Rxc8+ {[%clk 0:00:53]}  Qxc8 {[%clk 0:00:52]} 29. Be5 {[%clk 0:00:45]}  Ba3 {[%clk 0:00:48]} 30. Bd4 {[%clk 0:00:38]}  Bd6 {[%clk 0:00:27]} 31. b4 {[%clk 0:00:31]}  Qc6 {[%clk 0:00:26]} 32. Qd8+ {[%clk 0:00:29]}  Bf8 {[%clk 0:00:23]} 33. Ne5 {[%clk 0:00:29]}  Qc8 {[%clk 0:00:21]} 34. Qxc8 {[%clk 0:00:21]}  Bxc8 {[%clk 0:00:20]} 35. b5 {[%clk 0:00:22]}  f6 {[%clk 0:00:14]} 36. Nc6 {[%clk 0:00:22]}  Kf7 {[%clk 0:00:13]} 37. b6 {[%clk 0:00:22]}  Nd6 {[%clk 0:00:12]} 38. g3 {[%clk 0:00:17]}  Ke6 {[%clk 0:00:09]} 39. Kg2 {[%clk 0:00:17]}  Kd7 {[%clk 0:00:08]} 40. Na5 {[%clk 0:00:17]}  Nb7 {[%clk 0:00:06]} 41. Ba6 {[%clk 0:00:14]}  Nxa5 {[%clk 0:00:05]} 42. Bb5+ {[%clk 0:00:14]}  Kd6 {[%clk 0:00:05]} 43. Bxf6 {[%clk 0:00:14]}  Bb7 {[%clk 0:00:05]} 44. Bd4 {[%clk 0:00:14]}  Nc4 {[%clk 0:00:04]} 45. Kf1 {[%clk 0:00:12]}  Be7 {[%clk 0:00:04]} 46. Ke2 {[%clk 0:00:12]}  Bd8 {[%clk 0:00:05]} 47. Bxc4 {[%clk 0:00:10]}  dxc4 {[%clk 0:00:04]} 48. Kd2 {[%clk 0:00:11]}  Kd5 {[%clk 0:00:04]} 49. Kc3 {[%clk 0:00:11]}  Ba6 {[%clk 0:00:05]} 50. Be3 {[%clk 0:00:10]}  Kc6 {[%clk 0:00:05]} 51. Kb4 {[%clk 0:00:09]}  Bxb6 {[%clk 0:00:05]} 52. Bxb6 {[%clk 0:00:09]}  Kxb6 {[%clk 0:00:05]} 0-1


[Site "https://www.chess.com"]

[Event "Titled Tuesday Blitz December 7 2021"]
[White "Gelman, Alexander"]
[Black "Terry, Renato"]
[WhiteFideId "4118316"]
[BlackFideId "3803457"]
[WhiteElo "2375"]
[BlackElo "2577"]
[Result "0-1"]
[Round "06"]
[TimeControl "180+1"]
[Date "2021.12.07"]
[WhiteClock "0:00:13"]
[BlackClock "0:00:17"]

1. d4 {[%clk 0:03:00]}  Nf6 {[%clk 0:03:00]} 2. Nc3 {[%clk 0:03:01]}  d5 {[%clk 0:02:57]} 3. Bf4 {[%clk 0:03:01]}  Nh5 {[%clk 0:02:53]} 4. Bg5 {[%clk 0:02:59]}  h6 {[%clk 0:02:53]} 5. Bh4 {[%clk 0:02:47]}  g5 {[%clk 0:02:53]} 6. e4 {[%clk 0:02:47]}  Nf6 {[%clk 0:02:48]} 7. e5 {[%clk 0:02:43]}  gxh4 {[%clk 0:02:45]} 8. exf6 {[%clk 0:02:42]}  e6 {[%clk 0:02:46]} 9. Qf3 {[%clk 0:02:36]}  Nd7 {[%clk 0:02:46]} 10. Qf4 {[%clk 0:02:18]}  Qxf6 {[%clk 0:02:32]} 11. Qxc7 {[%clk 0:02:18]}  Qxd4 {[%clk 0:02:32]} 12. Nf3 {[%clk 0:02:15]}  Qb4 {[%clk 0:02:30]} 13. Bb5 {[%clk 0:01:29]}  Bd6 {[%clk 0:02:24]} 14. a3 {[%clk 0:01:17]}  Qf4 {[%clk 0:02:10]} 15. Qa5 {[%clk 0:01:06]}  h3 {[%clk 0:02:07]} 16. Be2 {[%clk 0:00:51]}  hxg2 {[%clk 0:02:05]} 17. Rg1 {[%clk 0:00:52]}  Rg8 {[%clk 0:02:05]} 18. Rd1 {[%clk 0:00:45]}  Bc7 {[%clk 0:01:06]} 19. Qb5 {[%clk 0:00:34]}  a6 {[%clk 0:01:06]} 20. Qd3 {[%clk 0:00:34]}  Ne5 {[%clk 0:01:06]} 21. Qh7 {[%clk 0:00:34]}  Kf8 {[%clk 0:00:58]} 22. Nxe5 {[%clk 0:00:30]}  Bxe5 {[%clk 0:00:58]} 23. Rd3 {[%clk 0:00:26]}  Qxh2 {[%clk 0:00:54]} 24. Rf3 {[%clk 0:00:26]}  Qxg1+ {[%clk 0:00:53]} 25. Kd2 {[%clk 0:00:26]}  Bg7 {[%clk 0:00:27]} 26. Rxf7+ {[%clk 0:00:19]}  Kxf7 {[%clk 0:00:27]} 27. Bh5+ {[%clk 0:00:20]}  Ke7 {[%clk 0:00:27]} 28. Qxg8 {[%clk 0:00:18]}  Qxf2+ {[%clk 0:00:27]} 29. Ne2 {[%clk 0:00:19]}  Qf8 {[%clk 0:00:18]} 30. Qh7 {[%clk 0:00:16]}  Bd7 {[%clk 0:00:18]} 31. Nf4 {[%clk 0:00:13]}  Qxf4+ {[%clk 0:00:17]} 0-1


[Site "https://www.chess.com"]

[Event "Titled Tuesday Blitz December 7 2021"]
[White "Gunduz, Umut Erdem"]
[Black "Thomas, Anysia"]
[WhiteFideId "6381383"]
[BlackFideId "670472"]
[WhiteElo "2096"]
[BlackElo "2002"]
[Result "1-0"]
[Round "06"]
[TimeControl "180+1"]
[Date "2021.12.07"]
[WhiteClock "0:00:05"]
[BlackClock "0:00:05"]

1. e4 {[%clk 0:03:00]}  c5 {[%clk 0:02:57]} 2. Nf3 {[%clk 0:03:00]}  g6 {[%clk 0:02:57]} 3. d4 {[%clk 0:02:59]}  cxd4 {[%clk 0:02:58]} 4. Qxd4 {[%clk 0:02:59]}  Nf6 {[%clk 0:02:58]} 5. e5 {[%clk 0:02:59]}  Nc6 {[%clk 0:02:58]} 6. Qa4 {[%clk 0:03:00]}  Nd5 {[%clk 0:02:58]} 7. Qb3 {[%clk 0:03:00]}  Nb6 {[%clk 0:02:57]} 8. a4 {[%clk 0:03:00]}  a5 {[%clk 0:02:44]} 9. Be3 {[%clk 0:03:00]}  Nb4 {[%clk 0:02:37]} 10. Na3 {[%clk 0:02:55]}  Bg7 {[%clk 0:02:35]} 11. Nc4 {[%clk 0:02:52]}  Nxc4 {[%clk 0:02:33]} 12. Bxc4 {[%clk 0:02:53]}  O-O {[%clk 0:02:33]} 13. c3 {[%clk 0:02:53]}  Nc6 {[%clk 0:02:32]} 14. Bb6 {[%clk 0:02:45]}  Qe8 {[%clk 0:02:28]} 15. O-O-O {[%clk 0:02:08]}  Nxe5 {[%clk 0:02:18]} 16. Nxe5 {[%clk 0:02:07]}  Bxe5 {[%clk 0:02:18]} 17. Rhe1 {[%clk 0:02:06]}  d6 {[%clk 0:02:13]} 18. Bd4 {[%clk 0:01:46]}  Bd7 {[%clk 0:01:40]} 19. Qxb7 {[%clk 0:01:14]}  Bc6 {[%clk 0:01:32]} 20. Qb6 {[%clk 0:01:07]}  Bxa4 {[%clk 0:01:02]} 21. Bxe5 {[%clk 0:00:56]}  dxe5 {[%clk 0:01:02]} 22. Rd5 {[%clk 0:00:45]}  Qc8 {[%clk 0:00:50]} 23. Bd3 {[%clk 0:00:26]}  Rb8 {[%clk 0:00:32]} 24. Qxa5 {[%clk 0:00:25]}  Qb7 {[%clk 0:00:31]} 25. Re2 {[%clk 0:00:22]}  Bc6 {[%clk 0:00:29]} 26. Rdxe5 {[%clk 0:00:22]}  Ra8 {[%clk 0:00:27]} 27. Qb4 {[%clk 0:00:18]}  Qa7 {[%clk 0:00:17]} 28. Rxe7 {[%clk 0:00:16]}  Qa1+ {[%clk 0:00:17]} 29. Bb1 {[%clk 0:00:10]}  Rab8 {[%clk 0:00:14]} 30. Qc4 {[%clk 0:00:10]}  Bxg2 {[%clk 0:00:07]} 31. Qa2 {[%clk 0:00:10]}  Qxa2 {[%clk 0:00:06]} 32. Bxa2 {[%clk 0:00:11]}  Ra8 {[%clk 0:00:06]} 33. Bb3 {[%clk 0:00:11]}  Rab8 {[%clk 0:00:06]} 34. Kc2 {[%clk 0:00:11]}  Bf3 {[%clk 0:00:06]} 35. R2e3 {[%clk 0:00:11]}  Bg4 {[%clk 0:00:06]} 36. Bd5 {[%clk 0:00:08]}  Bf5+ {[%clk 0:00:07]} 37. Be4 {[%clk 0:00:05]}  Bxe4+ {[%clk 0:00:07]} 38. R3xe4 {[%clk 0:00:06]}  Kg7 {[%clk 0:00:06]} 39. b4 {[%clk 0:00:06]}  Rfc8 {[%clk 0:00:05]} 40. Kb3 {[%clk 0:00:05]}  Rb7 {[%clk 0:00:05]} 41. Rxb7 {[%clk 0:00:05]} 1-0


[Site "https://www.chess.com"]

[Event "Titled Tuesday Blitz December 7 2021"]
[White "Hamley, Ryan"]
[Black "Mihailidis, Anastasios"]
[WhiteFideId "30959497"]
[BlackFideId "4205588"]
[WhiteElo "2557"]
[BlackElo "2312"]
[Result "1-0"]
[Round "06"]
[TimeControl "180+1"]
[Date "2021.12.07"]
[WhiteClock "0:00:29"]
[BlackClock "0:00:46"]

1. e4 {[%clk 0:03:00]}  c5 {[%clk 0:02:57]} 2. Nf3 {[%clk 0:02:59]}  d6 {[%clk 0:02:57]} 3. d4 {[%clk 0:02:59]}  cxd4 {[%clk 0:02:57]} 4. Nxd4 {[%clk 0:03:00]}  Nf6 {[%clk 0:02:58]} 5. Nc3 {[%clk 0:03:00]}  g6 {[%clk 0:02:57]} 6. Be3 {[%clk 0:03:00]}  Bg7 {[%clk 0:02:57]} 7. f3 {[%clk 0:03:01]}  O-O {[%clk 0:02:58]} 8. Qd2 {[%clk 0:03:01]}  Nc6 {[%clk 0:02:58]} 9. O-O-O {[%clk 0:03:02]}  d5 {[%clk 0:02:58]} 10. exd5 {[%clk 0:03:02]}  Nxd5 {[%clk 0:02:58]} 11. Nxc6 {[%clk 0:03:01]}  bxc6 {[%clk 0:02:58]} 12. Nxd5 {[%clk 0:03:02]}  cxd5 {[%clk 0:02:58]} 13. Qxd5 {[%clk 0:03:03]}  Qc7 {[%clk 0:02:58]} 14. Qxa8 {[%clk 0:03:03]}  Bf5 {[%clk 0:02:58]} 15. Qxf8+ {[%clk 0:03:04]}  Kxf8 {[%clk 0:02:57]} 16. Rd2 {[%clk 0:03:05]}  Bf6 {[%clk 0:02:45]} 17. g4 {[%clk 0:02:35]}  Be6 {[%clk 0:02:37]} 18. Be2 {[%clk 0:02:26]}  Kg7 {[%clk 0:02:32]} 19. h4 {[%clk 0:02:20]}  Bxa2 {[%clk 0:02:03]} 20. h5 {[%clk 0:02:12]}  e6 {[%clk 0:01:36]} 21. h6+ {[%clk 0:02:03]}  Kf8 {[%clk 0:01:36]} 22. Rhd1 {[%clk 0:02:03]}  Qb8 {[%clk 0:01:05]} 23. c3 {[%clk 0:00:30]}  Bd5 {[%clk 0:00:57]} 24. g5 {[%clk 0:00:29]}  Be5 {[%clk 0:00:48]} 25. c4 {[%clk 0:00:29]}  Qxb2+ {[%clk 0:00:46]} 26. Rxb2 {[%clk 0:00:29]} 1-0


[Site "https://www.chess.com"]

[Event "Titled Tuesday Blitz December 7 2021"]
[White "Holtel, Jasper"]
[Black "Dzhaparov, Medet"]
[WhiteFideId "12956376"]
[BlackFideId "13803689"]
[WhiteElo "2380"]
[BlackElo "1702"]
[Result "1-0"]
[Round "06"]
[TimeControl "180+1"]
[Date "2021.12.07"]
[WhiteClock "0:00:17"]
[BlackClock "0:00:01"]

1. d4 {[%clk 0:03:00]}  Nf6 {[%clk 0:02:59]} 2. Bg5 {[%clk 0:03:00]}  c5 {[%clk 0:02:59]} 3. d5 {[%clk 0:03:00]}  Ne4 {[%clk 0:02:59]} 4. h4 {[%clk 0:02:59]}  Qb6 {[%clk 0:02:58]} 5. Nd2 {[%clk 0:02:58]}  Nxg5 {[%clk 0:02:38]} 6. hxg5 {[%clk 0:02:59]}  g6 {[%clk 0:02:38]} 7. e4 {[%clk 0:02:37]}  Bg7 {[%clk 0:02:36]} 8. Nc4 {[%clk 0:02:34]}  Qd8 {[%clk 0:02:26]} 9. a4 {[%clk 0:02:31]}  d6 {[%clk 0:02:25]} 10. Nf3 {[%clk 0:02:06]}  Nd7 {[%clk 0:02:24]} 11. Bd3 {[%clk 0:01:58]}  Nb6 {[%clk 0:02:15]} 12. c3 {[%clk 0:01:50]}  Nxc4 {[%clk 0:02:14]} 13. Bxc4 {[%clk 0:01:51]}  a6 {[%clk 0:02:00]} 14. Qe2 {[%clk 0:01:35]}  Qa5 {[%clk 0:01:51]} 15. e5 {[%clk 0:01:17]}  O-O {[%clk 0:01:44]} 16. Qe4 {[%clk 0:01:07]}  dxe5 {[%clk 0:01:22]} 17. Qh4 {[%clk 0:01:05]}  h5 {[%clk 0:01:12]} 18. gxh6 {[%clk 0:01:04]}  Bf6 {[%clk 0:01:13]} 19. Qg3 {[%clk 0:01:00]}  b5 {[%clk 0:01:08]} 20. Bd3 {[%clk 0:00:58]}  e4 {[%clk 0:00:17]} 21. Bxe4 {[%clk 0:00:55]}  Qb6 {[%clk 0:00:04]} 22. d6 {[%clk 0:00:40]}  Bb7 {[%clk 0:00:02]} 23. Bxb7 {[%clk 0:00:21]}  Qxb7 {[%clk 0:00:02]} 24. O-O-O {[%clk 0:00:19]}  bxa4 {[%clk 0:00:01]} 25. Ne5 {[%clk 0:00:17]} 1-0


[Site "https://www.chess.com"]

[Event "Titled Tuesday Blitz December 7 2021"]
[White "Ivanchuk, Vasyl"]
[Black "Druska, Juraj"]
[WhiteFideId "14100010"]
[BlackFideId "14915650"]
[WhiteElo "2710"]
[BlackElo "2369"]
[Result "1-0"]
[Round "06"]
[TimeControl "180+1"]
[Date "2021.12.07"]
[WhiteClock "0:00:29"]
[BlackClock "0:00:02"]

1. d4 {[%clk 0:03:00]}  Nf6 {[%clk 0:02:53]} 2. c4 {[%clk 0:03:00]}  c5 {[%clk 0:02:50]} 3. d5 {[%clk 0:02:59]}  e6 {[%clk 0:02:50]} 4. Nc3 {[%clk 0:02:58]}  exd5 {[%clk 0:02:50]} 5. cxd5 {[%clk 0:02:58]}  g6 {[%clk 0:02:50]} 6. e4 {[%clk 0:02:58]}  d6 {[%clk 0:02:50]} 7. Bd3 {[%clk 0:02:53]}  Bg7 {[%clk 0:02:50]} 8. h3 {[%clk 0:02:52]}  O-O {[%clk 0:02:50]} 9. Nf3 {[%clk 0:02:52]}  Re8 {[%clk 0:02:20]} 10. O-O {[%clk 0:02:52]}  c4 {[%clk 0:02:11]} 11. Bc2 {[%clk 0:02:50]}  Nbd7 {[%clk 0:02:09]} 12. Be3 {[%clk 0:02:44]}  b6 {[%clk 0:01:50]} 13. Nd4 {[%clk 0:02:21]}  Nc5 {[%clk 0:01:22]} 14. Nc6 {[%clk 0:02:01]}  Qd7 {[%clk 0:01:19]} 15. Qf3 {[%clk 0:02:01]}  Bb7 {[%clk 0:01:13]} 16. Bd4 {[%clk 0:01:41]}  Nh5 {[%clk 0:01:04]} 17. Bxg7 {[%clk 0:01:34]}  Nxg7 {[%clk 0:01:01]} 18. Nd4 {[%clk 0:01:34]}  a6 {[%clk 0:00:50]} 19. a4 {[%clk 0:01:28]}  Re7 {[%clk 0:00:23]} 20. Rfe1 {[%clk 0:01:27]}  Rae8 {[%clk 0:00:23]} 21. Re3 {[%clk 0:01:27]}  Qd8 {[%clk 0:00:18]} 22. Rae1 {[%clk 0:01:21]}  Nd7 {[%clk 0:00:18]} 23. Qe2 {[%clk 0:01:18]}  Qc7 {[%clk 0:00:18]} 24. Qd2 {[%clk 0:01:12]}  Qc5 {[%clk 0:00:18]} 25. Rb1 {[%clk 0:01:01]}  Nh5 {[%clk 0:00:18]} 26. b4 {[%clk 0:00:55]}  cxb3 {[%clk 0:00:18]} 27. Nxb3 {[%clk 0:00:55]}  Qc4 {[%clk 0:00:17]} 28. Bd3 {[%clk 0:00:53]}  Qc8 {[%clk 0:00:15]} 29. Bf1 {[%clk 0:00:49]}  Nc5 {[%clk 0:00:14]} 30. Nxc5 {[%clk 0:00:44]}  Qxc5 {[%clk 0:00:13]} 31. Qb2 {[%clk 0:00:44]}  Bc8 {[%clk 0:00:07]} 32. Qxb6 {[%clk 0:00:43]}  Qxb6 {[%clk 0:00:07]} 33. Rxb6 {[%clk 0:00:43]}  Nf6 {[%clk 0:00:07]} 34. Rxd6 {[%clk 0:00:40]}  Kg7 {[%clk 0:00:05]} 35. f3 {[%clk 0:00:38]}  Rc7 {[%clk 0:00:05]} 36. Bxa6 {[%clk 0:00:34]}  Bd7 {[%clk 0:00:03]} 37. Bb5 {[%clk 0:00:32]}  Bxb5 {[%clk 0:00:02]} 38. axb5 {[%clk 0:00:32]}  Rc4 {[%clk 0:00:01]} 39. Rc6 {[%clk 0:00:31]}  Rb4 {[%clk 0:00:01]} 40. Rd3 {[%clk 0:00:31]}  Nh5 {[%clk 0:00:01]} 41. Rd2 {[%clk 0:00:30]}  Nf4 {[%clk 0:00:02]} 42. d6 {[%clk 0:00:30]}  Rb1+ {[%clk 0:00:02]} 43. Nxb1 {[%clk 0:00:29]} 1-0


[Site "https://www.chess.com"]

[Event "Titled Tuesday Blitz December 7 2021"]
[White "Kadam, Om Manish"]
[Black "Grineva, Marianna"]
[WhiteFideId "45076294"]
[BlackFideId "14102013"]
[WhiteElo "1729"]
[BlackElo "1953"]
[Result "1-0"]
[Round "06"]
[TimeControl "180+1"]
[Date "2021.12.07"]
[WhiteClock "0:02:11"]
[BlackClock "0:00:02"]

1. e4 {[%clk 0:03:00]}  c5 {[%clk 0:02:59]} 2. Nf3 {[%clk 0:03:01]}  d6 {[%clk 0:02:56]} 3. d4 {[%clk 0:03:01]}  cxd4 {[%clk 0:02:55]} 4. Nxd4 {[%clk 0:03:02]}  Nf6 {[%clk 0:02:55]} 5. Nc3 {[%clk 0:03:02]}  g6 {[%clk 0:02:54]} 6. g3 {[%clk 0:03:02]}  Bg7 {[%clk 0:02:54]} 7. Bg2 {[%clk 0:03:02]}  O-O {[%clk 0:02:54]} 8. O-O {[%clk 0:03:02]}  a6 {[%clk 0:02:53]} 9. h3 {[%clk 0:03:02]}  Nc6 {[%clk 0:02:41]} 10. Nxc6 {[%clk 0:03:02]}  bxc6 {[%clk 0:02:42]} 11. Be3 {[%clk 0:03:02]}  Rb8 {[%clk 0:02:40]} 12. Rb1 {[%clk 0:02:58]}  Be6 {[%clk 0:02:30]} 13. a3 {[%clk 0:02:56]}  Qc8 {[%clk 0:02:25]} 14. Kh2 {[%clk 0:02:56]}  Rd8 {[%clk 0:02:23]} 15. Qe2 {[%clk 0:02:56]}  d5 {[%clk 0:02:00]} 16. exd5 {[%clk 0:02:54]}  cxd5 {[%clk 0:01:53]} 17. Bd4 {[%clk 0:02:52]}  Qc4 {[%clk 0:01:37]} 18. Qxc4 {[%clk 0:02:42]}  dxc4 {[%clk 0:01:38]} 19. Be5 {[%clk 0:02:43]}  Rb6 {[%clk 0:01:31]} 20. Bc7 {[%clk 0:02:42]}  Rdb8 {[%clk 0:01:31]} 21. Bxb6 {[%clk 0:02:38]}  Rxb6 {[%clk 0:01:32]} 22. Rfd1 {[%clk 0:02:38]}  Bf8 {[%clk 0:01:28]} 23. Rd8 {[%clk 0:02:37]}  Bf5 {[%clk 0:01:27]} 24. Nd5 {[%clk 0:02:28]}  Nxd5 {[%clk 0:01:22]} 25. Bxd5 {[%clk 0:02:28]}  Bxc2 {[%clk 0:01:21]} 26. Re1 {[%clk 0:02:28]}  e6 {[%clk 0:01:13]} 27. Bxc4 {[%clk 0:02:27]}  Rxb2 {[%clk 0:01:12]} 28. Re2 {[%clk 0:02:28]}  Kg7 {[%clk 0:01:06]} 29. Rdd2 {[%clk 0:02:27]}  Bxa3 {[%clk 0:00:57]} 30. Rxc2 {[%clk 0:02:27]}  Rb6 {[%clk 0:00:58]} 31. Ra2 {[%clk 0:02:27]}  Bc5 {[%clk 0:00:56]} 32. Rxa6 {[%clk 0:02:27]}  Rb4 {[%clk 0:00:55]} 33. Rc2 {[%clk 0:02:27]}  Bd4 {[%clk 0:00:48]} 34. Rd6 {[%clk 0:02:26]}  Be5 {[%clk 0:00:47]} 35. Rd7 {[%clk 0:02:25]}  Kf6 {[%clk 0:00:27]} 36. Ba2 {[%clk 0:02:22]}  h5 {[%clk 0:00:19]} 37. Re2 {[%clk 0:02:20]}  h4 {[%clk 0:00:18]} 38. Kg2 {[%clk 0:02:20]}  hxg3 {[%clk 0:00:18]} 39. fxg3 {[%clk 0:02:21]}  Ra4 {[%clk 0:00:18]} 40. Rf2+ {[%clk 0:02:20]}  Kg5 {[%clk 0:00:18]} 41. Rdxf7 {[%clk 0:02:20]}  Ra3 {[%clk 0:00:17]} 42. R7f3 {[%clk 0:02:19]}  Ra5 {[%clk 0:00:16]} 43. Re2 {[%clk 0:02:19]}  Bd6 {[%clk 0:00:15]} 44. Bxe6 {[%clk 0:02:19]}  Kh6 {[%clk 0:00:14]} 45. h4 {[%clk 0:02:19]}  Ra1 {[%clk 0:00:14]} 46. g4 {[%clk 0:02:19]}  Bc5 {[%clk 0:00:14]} 47. g5+ {[%clk 0:02:17]}  Kh5 {[%clk 0:00:13]} 48. Kh3 {[%clk 0:02:18]}  Rh1+ {[%clk 0:00:12]} 49. Rh2 {[%clk 0:02:15]}  Rg1 {[%clk 0:00:09]} 50. Rf4 {[%clk 0:02:09]}  Bd6 {[%clk 0:00:06]} 51. Bg4+ {[%clk 0:02:09]}  Rxg4 {[%clk 0:00:04]} 52. Rxg4 {[%clk 0:02:10]}  Bxh2 {[%clk 0:00:02]} 53. Ra4 {[%clk 0:02:11]} 1-0


[Site "https://www.chess.com"]

[Event "Titled Tuesday Blitz December 7 2021"]
[White "Klabis, Rokas"]
[Black "Garagulya, Konstantin"]
[WhiteFideId "12805246"]
[BlackFideId "4128931"]
[WhiteElo "2255"]
[BlackElo "2329"]
[Result "0-1"]
[Round "06"]
[TimeControl "180+1"]
[Date "2021.12.07"]
[WhiteClock "0:00:11"]
[BlackClock "0:00:05"]

1. e4 {[%clk 0:03:00]}  c5 {[%clk 0:02:59]} 2. Nc3 {[%clk 0:02:57]}  a6 {[%clk 0:02:59]} 3. a4 {[%clk 0:02:56]}  Nc6 {[%clk 0:02:57]} 4. g3 {[%clk 0:02:55]}  g6 {[%clk 0:02:58]} 5. Bg2 {[%clk 0:02:55]}  Bg7 {[%clk 0:02:58]} 6. Nge2 {[%clk 0:02:56]}  e6 {[%clk 0:02:58]} 7. d3 {[%clk 0:02:56]}  Nge7 {[%clk 0:02:58]} 8. Be3 {[%clk 0:02:56]}  Nd4 {[%clk 0:02:57]} 9. Qd2 {[%clk 0:02:53]}  h5 {[%clk 0:02:49]} 10. Nd1 {[%clk 0:02:53]}  Rb8 {[%clk 0:02:48]} 11. O-O {[%clk 0:02:52]}  d6 {[%clk 0:02:38]} 12. h3 {[%clk 0:02:51]}  b5 {[%clk 0:02:37]} 13. axb5 {[%clk 0:02:50]}  axb5 {[%clk 0:02:37]} 14. Ra7 {[%clk 0:02:49]}  Nec6 {[%clk 0:02:35]} 15. Ra1 {[%clk 0:02:42]}  O-O {[%clk 0:02:35]} 16. Kh2 {[%clk 0:02:40]}  b4 {[%clk 0:02:08]} 17. f4 {[%clk 0:02:32]}  Nxe2 {[%clk 0:02:04]} 18. Qxe2 {[%clk 0:02:31]}  Nd4 {[%clk 0:02:05]} 19. Qf2 {[%clk 0:02:31]}  b3 {[%clk 0:02:01]} 20. c3 {[%clk 0:02:31]}  Nc2 {[%clk 0:02:01]} 21. Rb1 {[%clk 0:02:21]}  Bd7 {[%clk 0:01:21]} 22. Bd2 {[%clk 0:02:18]}  Bb5 {[%clk 0:01:16]} 23. Qf3 {[%clk 0:02:14]}  d5 {[%clk 0:01:08]} 24. exd5 {[%clk 0:02:03]}  Qxd5 {[%clk 0:01:03]} 25. Qxd5 {[%clk 0:02:02]}  exd5 {[%clk 0:01:04]} 26. Nf2 {[%clk 0:01:57]}  Rbd8 {[%clk 0:00:56]} 27. Bf3 {[%clk 0:01:50]}  Rfe8 {[%clk 0:00:54]} 28. Kg2 {[%clk 0:01:50]}  Ne3+ {[%clk 0:00:53]} 29. Bxe3 {[%clk 0:01:50]}  Rxe3 {[%clk 0:00:54]} 30. Rbd1 {[%clk 0:01:42]}  Kf8 {[%clk 0:00:28]} 31. Rd2 {[%clk 0:01:42]}  c4 {[%clk 0:00:21]} 32. dxc4 {[%clk 0:01:35]}  Bxc4 {[%clk 0:00:20]} 33. Rfd1 {[%clk 0:01:35]}  Ra8 {[%clk 0:00:18]} 34. Bxd5 {[%clk 0:01:31]}  Bxd5+ {[%clk 0:00:17]} 35. Rxd5 {[%clk 0:01:32]}  Re2 {[%clk 0:00:17]} 36. R1d2 {[%clk 0:01:32]}  Rxd2 {[%clk 0:00:16]} 37. Rxd2 {[%clk 0:01:33]}  Ra2 {[%clk 0:00:16]} 38. Kf3 {[%clk 0:00:59]}  Bxc3 {[%clk 0:00:16]} 39. Rd3 {[%clk 0:00:59]}  Bxb2 {[%clk 0:00:15]} 40. Rxb3 {[%clk 0:00:59]}  Bd4 {[%clk 0:00:14]} 41. Ne4 {[%clk 0:00:58]}  Kg7 {[%clk 0:00:14]} 42. Ng5 {[%clk 0:00:58]}  Ra7 {[%clk 0:00:12]} 43. g4 {[%clk 0:00:56]}  hxg4+ {[%clk 0:00:12]} 44. hxg4 {[%clk 0:00:57]}  Bf6 {[%clk 0:00:12]} 45. Ne4 {[%clk 0:00:57]}  Be7 {[%clk 0:00:12]} 46. f5 {[%clk 0:00:57]}  gxf5 {[%clk 0:00:12]} 47. gxf5 {[%clk 0:00:57]}  f6 {[%clk 0:00:09]} 48. Kf4 {[%clk 0:00:55]}  Kf7 {[%clk 0:00:09]} 49. Rh3 {[%clk 0:00:54]}  Ra1 {[%clk 0:00:08]} 50. Rh7+ {[%clk 0:00:54]}  Ke8 {[%clk 0:00:09]} 51. Ke3 {[%clk 0:00:48]}  Ra4 {[%clk 0:00:08]} 52. Nc3 {[%clk 0:00:47]}  Ra5 {[%clk 0:00:08]} 53. Ke4 {[%clk 0:00:45]}  Re5+ {[%clk 0:00:08]} 54. Kf4 {[%clk 0:00:44]}  Rc5 {[%clk 0:00:05]} 55. Ne4 {[%clk 0:00:41]}  Rc4 {[%clk 0:00:05]} 56. Ke3 {[%clk 0:00:41]}  Ra4 {[%clk 0:00:05]} 57. Nc3 {[%clk 0:00:40]}  Ra5 {[%clk 0:00:04]} 58. Rh5 {[%clk 0:00:39]}  Kf7 {[%clk 0:00:03]} 59. Kd4 {[%clk 0:00:38]}  Bc5+ {[%clk 0:00:03]} 60. Kc4 {[%clk 0:00:38]}  Be7 {[%clk 0:00:03]} 61. Nd5 {[%clk 0:00:38]}  Bd8 {[%clk 0:00:04]} 62. Rh7+ {[%clk 0:00:38]}  Ke8 {[%clk 0:00:04]} 63. Rb7 {[%clk 0:00:36]}  Kf8 {[%clk 0:00:02]} 64. Kd4 {[%clk 0:00:34]}  Ke8 {[%clk 0:00:02]} 65. Ke4 {[%clk 0:00:34]}  Rc5 {[%clk 0:00:02]} 66. Nf4 {[%clk 0:00:31]}  Re5+ {[%clk 0:00:02]} 67. Kd4 {[%clk 0:00:26]}  Rxf5 {[%clk 0:00:02]} 68. Ne6 {[%clk 0:00:26]}  Re5 {[%clk 0:00:03]} 69. Ng7+ {[%clk 0:00:16]}  Kf8 {[%clk 0:00:03]} 70. Rb8 {[%clk 0:00:12]}  Kxg7 {[%clk 0:00:03]} 71. Rxd8 {[%clk 0:00:12]}  Kg6 {[%clk 0:00:04]} 72. Rf8 {[%clk 0:00:11]}  Kf5 {[%clk 0:00:05]} 73. Rf7 {[%clk 0:00:11]}  Re1 {[%clk 0:00:04]} 74. Kd3 {[%clk 0:00:11]}  Kg5 {[%clk 0:00:04]} 75. Kd2 {[%clk 0:00:11]}  Re8 {[%clk 0:00:04]} 76. Rd7 {[%clk 0:00:11]}  f5 {[%clk 0:00:04]} 77. Rf7 {[%clk 0:00:09]}  Kg4 {[%clk 0:00:04]} 78. Kd3 {[%clk 0:00:10]}  f4 {[%clk 0:00:04]} 79. Kd2 {[%clk 0:00:10]}  Kg3 {[%clk 0:00:04]} 80. Kd3 {[%clk 0:00:10]}  f3 {[%clk 0:00:04]} 81. Kd2 {[%clk 0:00:11]}  Kg2 {[%clk 0:00:04]} 82. Kd3 {[%clk 0:00:11]}  f2 {[%clk 0:00:04]} 83. Kd2 {[%clk 0:00:12]}  f1=Q {[%clk 0:00:05]} 84. Rxf1 {[%clk 0:00:11]} 0-1


[Site "https://www.chess.com"]